bitfinex/quotes_BTCUSD_20260307
["timestamp","ask_amount","ask_price","bid_price","bid_amount"]
[1772869914590,0.00148,67825.0,67813.0,0.07373]
[1772869914787,0.00170001,67825.0,67813.0,0.07373]
[1772869916495,0.00148,67824.0,67813.0,0.07373]
[1772869917117,0.00148,67824.0,67814.0,0.01600215]
[1772869917690,0.00170001,67825.0,67814.0,0.01600215]
[1772869918436,0.00015,67827.0,67815.0,0.07373]
[1772869918621,0.00148,67826.0,67815.0,0.07373]
[1772869920404,0.00148,67826.0,67807.0,0.0001219]
[1772869920405,0.00959136,67823.0,67807.0,0.0001219]
[1772869920746,0.09269536,67824.0,67807.0,0.0001219]
[1772869921297,0.09269536,67824.0,67801.0,0.07374507]
[1772869921298,0.09281726,67824.0,67801.0,0.07374507]
[1772869921806,0.09269536,67822.0,67805.0,0.0002]
[1772869922018,0.00027634,67819.0,67805.0,0.0002]
[1772869922232,0.09071388,67817.0,67805.0,0.0002]
[1772869922435,0.00027634,67816.0,67805.0,0.0002]
[1772869922634,0.00027634,67816.0,67805.0,0.0005705]
[1772869923231,0.09071388,67816.0,67805.0,0.0005705]
[1772869925467,0.09071388,67816.0,67806.0,0.07373978]
[1772869927703,0.00022533,67815.0,67805.0,0.0005705]
[1772869927900,0.07372903,67816.0,67801.0,0.07374441]
[1772869927901,0.09043754,67812.0,67801.0,0.07374441]
[1772869928199,0.00020306,67809.0,67802.0,0.07374413]
[1772869928777,0.00020306,67809.0,67805.0,0.0002]
[1772869928977,0.00023046,67808.0,67805.0,0.0002]
[1772869932070,0.07373554,67810.0,67805.0,0.0002]
[1772869932269,0.07478788,67810.0,67805.0,0.0002]
[1772869932571,0.07478788,67810.0,67797.0,0.07388521]
[1772869932572,0.04130562,67807.0,67779.0,0.07396904]
[1772869932799,0.04084876,67803.0,67783.0,0.07376447]
[1772869932976,0.00103771,67800.0,67784.0,0.07376355]
[1772869933241,0.04084876,67798.0,67784.0,0.07376355]
[1772869933518,0.00103771,67797.0,67784.0,0.07376355]
[1772869933675,0.00103771,67795.0,67783.0,0.07376406]
[1772869933880,0.00148,67796.0,67786.0,0.07396131]
[1772869934090,0.07374978,67797.0,67786.0,0.07396131]
[1772869934091,0.00148,67795.0,67786.0,0.07396131]
[1772869934291,0.00148,67794.0,67786.0,0.07396131]
[1772869934466,0.00148,67793.0,67787.0,0.01671377]
[1772869934668,0.00148,67792.0,67787.0,0.01671377]
[1772869934870,0.00148,67791.0,67787.0,0.01671377]
[1772869935503,0.00148,67792.0,67787.0,0.01671377]
[1772869936320,0.00148,67793.0,67788.0,0.07375936]
[1772869936745,0.00148,67793.0,67788.0,0.09047313]
[1772869937179,0.00148,67793.0,67789.0,0.01671377]
[1772869938439,0.00148,67793.0,67790.0,0.07375719]
[1772869939446,0.00148,67793.0,67790.0,0.09047096]
[1772869940040,0.00148,67793.0,67790.0,0.07375719]
[1772869942995,0.00148,67793.0,67789.0,0.07375827]
[1772869943163,0.00148,67793.0,67789.0,0.09047204]
[1772869944790,0.00148,67793.0,67790.0,0.0002]
[1772869945292,0.00148,67793.0,67790.0,0.01691377]
[1772869947085,0.07374082,67806.0,67791.0,0.0737561]
[1772869947264,0.00148,67805.0,67794.0,0.01671377]
[1772869947469,0.00148,67804.0,67791.0,0.0737561]
[1772869949045,0.00181674,67803.0,67791.0,0.0737561]
[1772869949247,0.07556087,67802.0,67790.0,0.0002]
[1772869950127,0.07554051,67802.0,67790.0,0.0002]
[1772869950527,0.00179638,67801.0,67786.0,0.07396154]
[1772869950740,0.00179638,67799.0,67786.0,0.07396154]
[1772869950974,0.00148,67798.0,67786.0,0.07396154]
[1772869951525,0.07374957,67797.0,67786.0,0.0002]
[1772869952560,0.07374957,67797.0,67788.0,0.0002]
[1772869960901,0.00148,67796.0,67788.0,0.0002]
[1772869961226,0.00148,67795.0,67789.0,0.01684955]
[1772869961404,0.00148,67794.0,67790.0,0.09060674]
[1772869961623,0.00022001,67797.0,67790.0,0.09060674]
[1772869961820,0.00148,67793.0,67790.0,0.09060674]
[1772869962388,0.00148,67792.0,67790.0,0.09060674]
[1772869964477,0.00148,67793.0,67790.0,0.09060674]
[1772869965124,0.00022001,67797.0,67790.0,0.09060674]
[1772869965328,0.00148,67796.0,67790.0,0.09060674]
[1772869965726,0.00148,67795.0,67790.0,0.09060674]
[1772869966282,0.00148,67794.0,67792.0,0.09255797]
[1772869966579,0.00022001,67804.0,67794.0,0.10940752]
[1772869966782,0.00148,67803.0,67794.0,0.10940752]
[1772869967201,0.00148,67803.0,67794.0,0.01684955]
[1772869967605,0.00022001,67804.0,67795.0,0.09255797]
[1772869967782,0.00148,67802.0,67796.0,0.01684955]
[1772869968502,0.00148,67802.0,67793.0,0.07375392]
[1772869968703,0.00148,67802.0,67794.0,0.01684955]
[1772869969560,0.00148,67802.0,67796.0,0.01684955]
[1772869972564,0.00148,67802.0,67797.0,0.07374957]
[1772869972788,0.00148,67801.0,67797.0,0.07374957]
[1772869972989,0.00148,67800.0,67798.0,0.01684955]
[1772869975799,0.00148,67800.0,67797.0,0.07374957]
[1772869976350,0.00148,67799.0,67798.0,0.01684955]
[1772869976895,0.00148,67799.0,67798.0,0.09059803]
[1772869978145,0.00022001,67800.0,67798.0,0.09059803]
[1772869978345,0.00022001,67803.0,67796.0,0.07374957]
[1772869978583,0.00148,67802.0,67799.0,0.00148]
[1772869980157,0.00148,67802.0,67796.0,0.07374957]
[1772869980580,0.00148,67801.0,67796.0,0.09046334]
[1772869981191,0.00148,67801.0,67796.0,0.07374957]
[1772869981391,0.00148,67801.0,67795.0,0.07375131]
[1772869982474,0.00022001,67803.0,67793.0,0.07375175]
[1772869982678,0.00148,67802.0,67793.0,0.07375175]
[1772869983100,0.00022001,67803.0,67794.0,0.01671377]
[1772869983331,0.00148,67801.0,67794.0,0.01671377]
[1772869984337,0.00034191,67804.0,67794.0,0.01671377]
[1772869984534,0.00148,67807.0,67798.0,0.10135115]
[1772869984731,0.00148,67807.0,67796.0,0.07375066]
[1772869984732,0.00148,67807.0,67800.0,0.10135115]
[1772869984942,0.00148,67807.0,67801.0,0.10135115]
[1772869985114,0.00022001,67814.0,67802.0,0.10135115]
[1772869985315,0.00022001,67814.0,67805.0,0.01671377]
[1772869985519,0.00022001,67814.0,67805.0,0.01682889]
[1772869985737,0.00148,67813.0,67805.0,0.01682889]
[1772869986197,0.00022001,67814.0,67805.0,0.01682889]
[1772869986198,0.00148,67812.0,67805.0,0.01682889]
[1772869986404,0.00022001,67810.0,67805.0,0.01682889]
[1772869986622,0.00148,67809.0,67806.0,0.07373978]
[1772869986751,0.00148,67809.0,67807.0,0.01671377]
[1772869986947,0.00148,67809.0,67806.0,0.07373978]
[1772869988901,0.00148,67809.0,67805.0,0.07385542]
[1772869989102,0.00148,67809.0,67805.0,0.09056919]
[1772869990712,0.00022001,67810.0,67805.0,0.09056919]
[1772869990923,0.00148,67808.0,67805.0,0.09056919]
[1772869993293,0.00148,67808.0,67806.0,0.01671377]
[1772869995346,0.00148,67808.0,67806.0,0.09045258]
[1772869995510,0.00148,67808.0,67806.0,0.07373881]
[1772869996348,0.00148,67808.0,67807.0,0.01671377]
[1772869997406,0.00148,67808.0,67805.0,0.00011512]
[1772869997658,0.00148,67808.0,67805.0,0.01682889]
[1772870000217,0.00148,67808.0,67806.0,0.07373978]
[1772870000413,0.00022001,67810.0,67807.0,0.01671377]
[1772870000616,0.00148,67809.0,67807.0,0.01671377]
[1772870002093,0.00148,67809.0,67806.0,0.07373978]
[1772870002731,0.00148,67809.0,67805.0,0.09056867]
[1772870006294,0.00148,67809.0,67806.0,0.01671377]
[1772870006491,0.00148,67809.0,67807.0,0.07373869]
[1772870007648,0.00170001,67809.0,67807.0,0.07373869]
[1772870008251,0.00148,67808.0,67807.0,0.07373869]
[1772870009065,0.00148,67808.0,67805.0,0.0738549]
[1772870009266,0.00170001,67809.0,67806.0,0.01671377]
[1772870009480,0.00148,67809.0,67806.0,0.01671377]
[1772870010587,0.00148,67809.0,67805.0,0.0738549]
[1772870010588,0.00148,67809.0,67807.0,0.01671377]
[1772870010794,0.00148,67809.0,67808.0,0.01671377]
[1772870011420,0.00148,67810.0,67809.0,0.01671377]
[1772870012896,0.00148,67810.0,67808.0,0.07373722]
[1772870013258,0.00148,67810.0,67808.0,0.09045099]
[1772870014158,0.00148,67810.0,67806.0,0.01671377]
[1772870014365,0.00148,67810.0,67807.0,0.01671377]
[1772870014749,0.00148,67810.0,67807.0,0.01691377]
[1772870014942,0.00170001,67810.0,67807.0,0.01691377]
[1772870015647,0.00148,67811.0,67807.0,0.01691377]
[1772870015848,0.00022001,67814.0,67807.0,0.01691377]
[1772870016074,0.00148,67813.0,67807.0,0.01691377]
[1772870016470,0.00148,67813.0,67808.0,0.09045138]
[1772870017101,0.00148,67813.0,67809.0,0.01671377]
[1772870017295,0.00022001,67815.0,67809.0,0.01671377]
[1772870017493,0.00148,67814.0,67810.0,0.01671377]
[1772870018129,0.00148,67814.0,67808.0,0.07373761]
[1772870021640,0.00148,67814.0,67807.0,0.07393761]
[1772870023003,0.00170001,67814.0,67807.0,0.0002]
[1772870028736,0.00170001,67814.0,67808.0,0.01671377]
[1772870028931,0.00022001,67815.0,67807.0,0.09783082]
[1772870028932,0.00148,67813.0,67809.0,0.09763082]
[1772870029143,0.00148,67813.0,67810.0,0.01671377]
[1772870029496,0.00022001,67815.0,67811.0,0.07373434]
[1772870029716,0.00148,67814.0,67811.0,0.07373434]
[1772870029932,0.00148,67814.0,67811.0,0.09044811]
[1772870031720,0.00170001,67814.0,67811.0,0.07373434]
[1772870032505,0.0004,67825.0,67813.0,0.01671377]
[1772870032700,0.12327818,67835.0,67815.0,0.09763082]
[1772870032701,0.00148,67829.0,67815.0,0.09763082]
[1772870032879,0.00148,67829.0,67818.0,0.01671377]
[1772870033083,0.00148,67829.0,67820.0,0.01671377]
[1772870033680,0.00148,67829.0,67811.0,0.07373434]
[1772870033681,0.00148,67829.0,67813.0,0.01671377]
[1772870033908,0.00148,67829.0,67813.0,0.01699937]
[1772870034070,0.00031266,67829.0,67813.0,0.09791642]
[1772870034276,0.00031266,67829.0,67814.0,0.09763082]
[1772870034485,0.00031266,67829.0,67815.0,0.01671377]
[1772870034686,0.00031266,67829.0,67816.0,0.01671377]
[1772870034899,0.00031266,67829.0,67817.0,0.01671377]
[1772870035943,0.00031266,67829.0,67818.0,0.07372673]
[1772870036142,0.00031266,67829.0,67818.0,0.0904405]
[1772870036353,0.00031266,67829.0,67819.0,0.01671377]
[1772870036932,0.00031266,67829.0,67819.0,0.01699937]
[1772870037682,0.00031266,67829.0,67820.0,0.09763082]
[1772870037840,0.00031266,67829.0,67821.0,0.01671377]
[1772870038690,0.00031266,67829.0,67823.0,0.01671377]
[1772870038946,0.00031266,67829.0,67823.0,0.01686957]
[1772870039164,0.00148,67828.0,67823.0,0.01686957]
[1772870039370,0.00148,67828.0,67823.0,0.0001558]
[1772870039573,0.00022001,67829.0,67823.0,0.0001558]
[1772870039744,0.00170001,67829.0,67825.0,0.01671377]
[1772870039947,0.00170001,67829.0,67825.0,0.01686957]
[1772870040355,0.00170001,67829.0,67825.0,0.0001558]
[1772870041608,0.00022001,67829.0,67825.0,0.0001558]
[1772870041795,0.00170001,67829.0,67825.0,0.0001558]
[1772870043078,0.00022001,67829.0,67825.0,0.0001558]
[1772870043303,0.00148,67828.0,67825.0,0.0001558]
[1772870045087,0.00022001,67829.0,67826.0,0.0236498]
[1772870045088,0.00170001,67829.0,67826.0,0.0236498]
[1772870045519,0.00575,67835.0,67826.0,0.0236498]
[1772870045520,0.00148,67831.0,67826.0,0.0236498]
[1772870045717,0.00148,67831.0,67828.0,0.10153444]
[1772870045938,0.23766249,67848.0,67828.0,0.0236498]
[1772870045939,0.00148,67832.0,67828.0,0.0236498]
[1772870046162,0.00148,67832.0,67826.0,0.0001558]
[1772870046291,0.00186388,67832.0,67826.0,0.0001558]
[1772870047767,0.00022001,67829.0,67826.0,0.0001558]
[1772870048533,0.00022001,67829.0,67826.0,0.02337946]
[1772870048813,0.00186388,67832.0,67826.0,0.02337946]
[1772870049022,0.00022001,67836.0,67827.0,0.02322366]
[1772870049230,0.00148,67835.0,67828.0,0.02322366]
[1772870049641,0.00148,67835.0,67829.0,0.07371478]
[1772870051361,0.00148,67835.0,67829.0,0.09693844]
[1772870054980,0.00170001,67835.0,67829.0,0.09693844]
[1772870056862,0.00148,67838.0,67829.0,0.07371478]
[1772870057041,0.00022001,67842.0,67831.0,0.02322366]
[1772870057339,0.00148,67841.0,67831.0,0.02322366]
[1772870057542,0.00022001,67842.0,67831.0,0.02322366]
[1772870057748,0.00148,67840.0,67831.0,0.02322366]
[1772870061612,0.00148,67840.0,67832.0,0.07371152]
[1772870062585,0.00170001,67840.0,67832.0,0.07371152]
[1772870065968,0.00170001,67840.0,67827.0,0.00015]
[1772870065969,0.03023218,67839.0,67818.0,0.0002]
[1772870066174,0.03023218,67839.0,67809.0,0.07393552]
[1772870066175,0.02957258,67829.0,67809.0,0.07393552]
[1772870066389,0.02937258,67827.0,67809.0,0.0002]
[1772870066602,0.02937258,67827.0,67808.0,0.07948714]
[1772870067229,0.02965378,67827.0,67808.0,0.07948714]
[1772870068267,0.07371804,67826.0,67808.0,0.07948714]
[1772870068391,0.0298137,67825.0,67808.0,0.07948714]
[1772870069211,0.0299379,67825.0,67808.0,0.07948714]
[1772870070030,0.0299379,67825.0,67817.0,0.0002]
[1772870070456,0.07372021,67824.0,67817.0,0.0002]
[1772870071300,0.07384441,67824.0,67817.0,0.0002]
[1772870073604,0.0001242,67824.0,67817.0,0.0002]
[1772870076919,0.00148,67823.0,67817.0,0.0002]
[1772870077248,0.0016042,67823.0,67817.0,0.0002]
[1772870077451,0.0001242,67823.0,67817.0,0.0002]
[1772870077672,0.00148,67822.0,67817.0,0.10541108]
[1772870078290,0.0016042,67822.0,67817.0,0.09646302]
[1772870078654,0.0016042,67822.0,67818.0,0.10521108]
[1772870079596,0.0016042,67822.0,67818.0,0.07372661]
[1772870079825,0.00148,67821.0,67819.0,0.12774721]
[1772870081657,0.00148,67821.0,67817.0,0.0002]
[1772870081827,0.07372456,67820.0,67812.0,0.07373319]
[1772870082661,0.07372456,67820.0,67817.0,0.0002]
[1772870084050,0.000157,67827.0,67817.0,0.0002]
[1772870084254,0.00148,67826.0,67819.0,0.12774721]
[1772870084993,0.00148,67826.0,67819.0,0.02253613]
[1772870085199,0.0004,67825.0,67806.0,0.00148]
[1772870085521,0.0004,67825.0,67810.0,0.01555714]
[1772870085725,0.0004,67825.0,67811.0,0.01555714]
[1772870086007,0.0004,67825.0,67813.0,0.01555714]
[1772870086421,0.000949,67825.0,67813.0,0.01555714]
[1772870087477,0.000949,67825.0,67813.0,0.10521108]
[1772870087682,0.000949,67825.0,67814.0,0.01555714]
[1772870088436,0.000949,67825.0,67815.0,0.07373]
[1772870088724,0.000949,67825.0,67815.0,0.08928714]
[1772870089327,0.000949,67825.0,67816.0,0.01555714]
[1772870090888,0.000949,67825.0,67817.0,0.07372782]
[1772870091086,0.00116901,67825.0,67817.0,0.07372782]
[1772870091508,0.00116901,67825.0,67818.0,0.01555714]
[1772870091736,0.00148,67826.0,67818.0,0.01555714]
[1772870091899,0.00148,67826.0,67818.0,0.01540714]
[1772870092653,0.0002284,67828.0,67818.0,0.01540714]
[1772870092654,0.00148,67825.0,67818.0,0.01540714]
[1772870092834,0.00148,67824.0,67819.0,0.07372565]
[1772870093039,0.00148,67824.0,67820.0,0.01555714]
[1772870093339,0.0002284,67828.0,67820.0,0.01555714]
[1772870093541,0.00148,67827.0,67820.0,0.01555714]
[1772870093760,0.00148,67826.0,67820.0,0.01555714]
[1772870095190,0.00148,67826.0,67820.0,0.08928128]
[1772870095568,0.09816992,67824.0,67808.0,0.07948709]
[1772870095740,0.09816992,67821.0,67808.0,0.07948709]
[1772870095944,0.11551234,67820.0,67808.0,0.07948709]
[1772870097364,0.07372565,67819.0,67808.0,0.07948709]
[1772870100459,0.07520512,67820.0,67808.0,0.07948709]
[1772870100760,0.07520512,67820.0,67809.0,0.02382518]
[1772870101557,0.00148,67820.0,67809.0,0.02382518]
[1772870101736,0.00148,67819.0,67810.0,0.07373543]
[1772870102666,0.00148,67819.0,67810.0,0.07358543]
[1772870103627,0.00148,67819.0,67811.0,0.02382518]
[1772870103850,0.00148,67819.0,67813.0,0.02382518]
[1772870104681,0.00022001,67825.0,67813.0,0.02382518]
[1772870104877,0.22116169,67828.0,67813.0,0.02382518]
[1772870104878,0.34870057,67828.0,67813.0,0.02382518]
[1772870105171,0.00148,67824.0,67813.0,0.02382518]
[1772870105380,0.20148388,67828.0,67813.0,0.02382518]
[1772870105381,0.0002284,67828.0,67813.0,0.02382518]
[1772870105560,0.00148,67827.0,67815.0,0.02382518]
[1772870105887,0.00148,67827.0,67817.0,0.07372782]
[1772870106098,0.00148,67827.0,67818.0,0.02382518]
[1772870106511,0.00148,67826.0,67818.0,0.02382518]
[1772870106679,0.00022001,67825.0,67818.0,0.02382518]
[1772870107013,0.00148,67824.0,67818.0,0.02382518]
[1772870108195,0.00148,67824.0,67820.0,0.02272736]
[1772870109608,1e-08,67828.0,67821.0,0.13915393]
[1772870109807,1e-08,67828.0,67822.0,0.02272736]
[1772870110276,1e-08,67828.0,67824.0,0.02272736]
[1772870112233,1e-08,67828.0,67826.0,0.02272736]
[1772870112436,0.00148,67834.0,67826.0,0.02257736]
[1772870112930,0.00455001,67835.0,67826.0,0.02257736]
[1772870113071,0.00148,67837.0,67828.0,0.02272736]
[1772870113277,0.00148,67837.0,67829.0,0.02272736]
[1772870114845,0.00148,67837.0,67831.0,0.02272736]
[1772870115459,0.00148,67838.0,67831.0,0.02272736]
[1772870116722,0.00148,67838.0,67832.0,0.09643888]
[1772870117287,0.00148,67838.0,67833.0,0.02272736]
[1772870118165,0.07369455,67848.0,67833.0,0.02272736]
[1772870118166,0.00148,67839.0,67833.0,0.02272736]
[1772870118944,0.00148,67839.0,67834.0,0.07370934]
[1772870119120,0.00148,67839.0,67834.0,0.0964367]
[1772870119425,0.00148,67839.0,67834.0,0.07370934]
[1772870119583,0.00148,67839.0,67835.0,0.02272736]
[1772870119976,0.00148,67841.0,67839.0,0.00148]
[1772870120183,0.00148,67841.0,67840.0,0.02272736]
[1772870120581,0.00022001,67844.0,67835.0,0.02272736]
[1772870120813,0.00148,67843.0,67835.0,0.02272736]
[1772870121065,0.00022001,67844.0,67836.0,0.07370717]
[1772870121263,0.00148,67843.0,67836.0,0.07370717]
[1772870121394,0.00022001,67844.0,67836.0,0.07370717]
[1772870121601,0.00148,67843.0,67836.0,0.09643453]
[1772870122582,0.00022001,67847.0,67836.0,0.07370717]
[1772870122801,0.00148,67846.0,67837.0,0.7452262]
[1772870123099,0.00148,67846.0,67839.0,0.07370391]
[1772870125076,1e-08,67856.0,67841.0,0.02272736]
[1772870125280,0.02301287,67855.0,67840.0,0.04963542]
[1772870125427,0.12753888,67852.0,67840.0,0.04963542]
[1772870125637,0.02301287,67849.0,67840.0,0.04963542]
[1772870125940,0.02301287,67849.0,67838.0,0.07370391]
[1772870125941,0.02301287,67848.0,67838.0,0.07370391]
[1772870126137,0.02301287,67848.0,67839.0,0.04963542]
[1772870126313,0.02301287,67848.0,67839.0,0.05163542]
[1772870126718,0.02301287,67848.0,67839.0,0.04963542]
[1772870126918,0.02301287,67848.0,67840.0,0.07370283]
[1772870127321,0.02323288,67848.0,67840.0,0.07370283]
[1772870127912,0.02323288,67848.0,67838.0,0.07370418]
[1772870127913,0.20145357,67848.0,67838.0,0.07370418]
[1772870128161,0.14273769,67847.0,67838.0,0.07370418]
[1772870128410,0.01519881,67844.0,67830.0,0.12334828]
[1772870128574,0.12753888,67841.0,67830.0,0.12346331]
[1772870128793,0.01519881,67840.0,67830.0,0.12346331]
[1772870129036,0.07370391,67839.0,67830.0,0.12346331]
[1772870129237,0.08882926,67839.0,67830.0,0.12346331]
[1772870131662,0.01512535,67839.0,67830.0,0.12346331]
[1772870132923,0.07370077,67842.0,67830.0,0.12346331]
[1772870134346,0.07370077,67842.0,67830.0,0.12366331]
[1772870134753,0.07392078,67842.0,67830.0,0.14639067]
[1772870134949,0.00022001,67842.0,67830.0,0.12351331]
[1772870135156,0.00022001,67842.0,67831.0,0.02272736]
[1772870135543,0.00022001,67842.0,67831.0,0.14644645]
[1772870135763,0.00022001,67842.0,67832.0,0.02272736]
[1772870136193,0.00148,67841.0,67833.0,0.07371043]
[1772870136543,0.00148,67841.0,67833.0,0.09643779]
[1772870136742,0.00022001,67842.0,67833.0,0.09643779]
[1772870136743,0.00148,67840.0,67833.0,0.09643779]
[1772870137680,0.00148,67840.0,67833.0,0.07371043]
[1772870138107,0.00022001,67842.0,67833.0,0.09685922]
[1772870138306,0.00148,67839.0,67833.0,0.09685922]
[1772870138713,0.00022001,67842.0,67833.0,0.09685922]
[1772870138933,0.00148,67841.0,67834.0,0.02314879]
[1772870139345,0.00148,67841.0,67833.0,0.07371043]
[1772870139635,0.00148,67841.0,67832.0,0.07371043]
[1772870139839,0.01681492,67841.0,67832.0,0.07371043]
[1772870140044,0.01681492,67841.0,67833.0,0.07371043]
[1772870140407,0.01681492,67841.0,67831.0,0.07371066]
[1772870140797,0.09051672,67841.0,67831.0,0.07371066]
[1772870141398,0.01681492,67841.0,67831.0,0.07371066]
[1772870141749,0.0905167,67841.0,67831.0,0.07371066]
[1772870141947,0.01537319,67840.0,67831.0,0.07371066]
[1772870142156,0.01537319,67840.0,67831.0,0.07391066]
[1772870142348,0.08907611,67840.0,67831.0,0.07391066]
[1772870142755,0.01537319,67839.0,67831.0,0.07391066]
[1772870145985,0.07370406,67839.0,67830.0,0.07402858]
[1772870146185,0.0887828,67839.0,67830.0,0.07402858]
[1772870146474,0.0887828,67839.0,67830.0,0.00031503]
[1772870146475,0.07370608,67837.0,67830.0,0.00031503]
[1772870147064,0.14493837,67836.0,67824.0,0.07391976]
[1772870147313,0.01648559,67835.0,67824.0,0.07391976]
[1772870148059,0.14493837,67834.0,67817.0,0.0739274]
[1772870148377,0.14493837,67827.0,67815.0,0.07372999]
[1772870148549,0.01493334,67824.0,67811.0,0.07373384]
[1772870149667,0.01493334,67824.0,67816.0,0.0002]
[1772870150614,0.0737213,67823.0,67816.0,0.0002]
[1772870150811,0.01543275,67822.0,67811.0,0.07373384]
[1772870152386,0.01543275,67822.0,67810.0,0.07393434]
[1772870152600,0.07372347,67821.0,67810.0,0.07393434]
[1772870152781,0.07372347,67821.0,67810.0,0.0002]
[1772870152782,0.01676627,67820.0,67810.0,0.0002]
[1772870153790,0.01676627,67820.0,67803.0,0.13949754]
[1772870153936,0.01676627,67820.0,67804.0,0.22018818]
[1772870154945,0.07372565,67819.0,67804.0,0.22018818]
[1772870155242,0.07372565,67819.0,67809.0,0.04969098]
[1772870155243,0.0962734,67819.0,67809.0,0.04969098]
[1772870155579,0.02254775,67819.0,67809.0,0.04969098]
[1772870155782,0.00148,67829.0,67811.0,0.02314879]
[1772870155959,0.00148,67828.0,67821.0,0.14644645]
[1772870156186,0.00148,67827.0,67826.0,0.02314879]
[1772870156390,0.00148,67827.0,67826.0,0.16959524]
[1772870156560,0.00575,67835.0,67827.0,0.02314879]
[1772870156756,0.00148,67834.0,67827.0,0.02314879]
[1772870157005,0.00148,67833.0,67828.0,0.07371586]
[1772870157165,0.00148,67833.0,67828.0,0.2433111]
[1772870158578,0.00148,67832.0,67828.0,0.2433111]
[1772870159265,0.00148,67832.0,67828.0,0.22016231]
[1772870159465,0.00148,67832.0,67829.0,0.02410247]
[1772870160330,0.07370497,67839.0,67829.0,0.02410247]
[1772870160528,0.00148,67838.0,67829.0,0.0242175]
[1772870160908,0.00148,67837.0,67829.0,0.0242175]
[1772870161079,0.07370497,67839.0,67829.0,0.0242175]
[1772870161282,0.07370353,67840.0,67829.0,0.22344539]
[1772870161283,0.00148,67838.0,67829.0,0.22344539]
[1772870161687,0.07518518,67838.0,67830.0,0.07371369]
[1772870161887,0.07370518,67838.0,67830.0,0.07371369]
[1772870162328,0.00148,67837.0,67830.0,0.07371369]
[1772870162810,0.00022001,67832.0,67830.0,0.07371369]
[1772870163149,0.07370403,67839.0,67830.0,0.24712345]
[1772870163351,0.07392404,67839.0,67830.0,0.24712345]
[1772870163555,0.14681014,67847.0,67831.0,0.17340976]
[1772870163556,0.07369798,67845.0,67831.0,0.17340976]
[1772870163788,0.00148,67838.0,67831.0,0.17340976]
[1772870163993,0.00148,67838.0,67832.0,0.07371152]
[1772870164409,0.0245971,67835.0,67804.0,0.14950729]
[1772870164611,0.0245971,67828.0,67805.0,0.07374087]
[1772870164843,0.0245971,67818.0,67800.0,0.07594616]
[1772870165053,0.14483089,67815.0,67800.0,0.0022]
[1772870165269,0.0245971,67812.0,67799.0,0.07374701]
[1772870165436,0.0245971,67810.0,67799.0,0.07374701]
[1772870166019,0.0245971,67808.0,67797.0,0.0002]
[1772870166456,0.0245971,67808.0,67797.0,0.00058388]
[1772870167627,0.07373652,67809.0,67797.0,0.14989117]
[1772870167835,0.00148,67807.0,67797.0,0.14989117]
[1772870168036,0.00148,67807.0,67798.0,0.07374848]
[1772870169474,0.00148,67806.0,67800.0,0.02478709]
[1772870169679,0.07372952,67816.0,67803.0,0.14930729]
[1772870169887,0.00148,67815.0,67806.0,0.02478709]
[1772870170075,0.07372518,67820.0,67806.0,0.17409438]
[1772870170280,0.00148,67819.0,67807.0,0.07373869]
[1772870170483,0.00148,67818.0,67808.0,0.14930729]
[1772870170681,0.00148,67818.0,67808.0,0.17409438]
[1772870171214,0.00148,67817.0,67808.0,0.17409438]
[1772870171575,0.00148,67817.0,67807.0,0.07373869]
[1772870172179,0.00148,67817.0,67807.0,0.24783307]
[1772870172495,0.02305312,67822.0,67808.0,0.17409438]
[1772870172496,0.00148,67816.0,67808.0,0.17409438]
[1772870172697,0.0737231,67822.0,67809.0,0.14930729]
[1772870172904,0.00148,67821.0,67811.0,0.14930729]
[1772870173110,0.00148,67820.0,67811.0,0.14930729]
[1772870173691,0.00148,67820.0,67811.0,0.17409438]
[1772870174398,0.00148,67820.0,67812.0,0.07373326]
[1772870177608,0.07520512,67820.0,67812.0,0.07373326]
[1772870178740,0.00148,67820.0,67812.0,0.07373326]
[1772870178959,0.00148,67820.0,67812.0,0.24782764]
[1772870180336,0.0004,67825.0,67812.0,0.07373326]
[1772870180555,0.00148,67824.0,67814.0,0.17409438]
[1772870180955,0.00148,67823.0,67814.0,0.17409438]
[1772870181332,0.00148,67823.0,67812.0,0.07373326]
[1772870181566,0.00148,67822.0,67812.0,0.07373326]
[1772870182607,0.00148,67821.0,67812.0,0.22304055]
[1772870182832,0.00148,67821.0,67812.0,0.24782764]
[1772870184467,0.07372122,67824.0,67812.0,0.24782764]
[1772870184668,0.00148,67823.0,67812.0,0.24782764]
[1772870185617,0.00148,67823.0,67812.0,0.24802764]
[1772870186123,0.07394123,67824.0,67812.0,0.24802764]
[1772870186329,0.00148,67823.0,67812.0,0.24802764]
[1772870187318,0.00148,67823.0,67813.0,0.17409438]
[1772870188190,0.07372239,67822.0,67814.0,0.07373108]
[1772870188609,0.00148,67821.0,67814.0,0.07373108]
[1772870190282,0.00148,67821.0,67812.0,0.07393108]
[1772870190457,0.00148,67821.0,67813.0,0.14930729]
[1772870190929,0.00148,67821.0,67813.0,0.17409438]
[1772870191131,0.00148,67820.0,67813.0,0.14930729]
[1772870191336,0.00148,67820.0,67813.0,0.17409438]
[1772870191705,0.00148,67820.0,67813.0,0.14930729]
[1772870191926,0.00148,67820.0,67814.0,0.02478709]
[1772870192328,0.00148,67820.0,67815.0,0.09851709]
[1772870192525,0.00148,67820.0,67816.0,0.17692832]
[1772870192727,0.00148,67820.0,67816.0,0.15214123]
[1772870192932,0.00148,67820.0,67817.0,0.17692832]
[1772870193190,0.00148,67820.0,67815.0,0.25065832]
[1772870193895,0.00148,67820.0,67816.0,0.15214123]
[1772870194100,0.00148,67820.0,67815.0,0.09851709]
[1772870194279,0.00148,67819.0,67815.0,0.09851709]
[1772870194493,0.00148,67819.0,67815.0,0.25065832]
[1772870194887,0.00148,67819.0,67815.0,0.22587123]
[1772870196607,0.00148,67819.0,67815.0,0.25065832]
[1772870199241,0.00148,67818.0,67815.0,0.25065832]
[1772870199717,0.00148,67817.0,67815.0,0.25065832]
[1772870200377,0.00148,67817.0,67816.0,0.15214123]
[1772870200559,0.00022001,67821.0,67817.0,0.07372782]
[1772870200754,0.00148,67820.0,67817.0,0.07372782]
[1772870201954,0.00022001,67820.0,67817.0,0.07372782]
[1772870202154,0.00148,67819.0,67817.0,0.07372782]
[1772870203787,0.00148,67819.0,67815.0,0.07393]
[1772870204289,0.00022001,67820.0,67815.0,0.07393]
[1772870204439,0.00148,67818.0,67815.0,0.07393]
[1772870204642,0.00148,67818.0,67815.0,0.24962782]
[1772870204843,0.00148,67818.0,67815.0,0.09748659]
[1772870205746,0.00148,67818.0,67815.0,0.21088014]
[1772870205906,0.00148,67818.0,67815.0,0.03518232]
[1772870206241,0.00148,67817.0,67815.0,0.03518232]
[1772870207735,0.00148,67817.0,67815.0,0.18732355]